bitfinex-derivatives/quotes_SOLF0:USTF0_20251018
["timestamp","ask_amount","ask_price","bid_price","bid_amount"]
[1760788589491,1.83927689,185.66,185.61,2.71]
[1760788589696,4.19793424,185.65,185.59,2.71]
[1760788589896,1.83927689,185.66,185.59,2.71]
[1760788590098,4.19778213,185.65,185.59,2.71]
[1760788590297,1.83927689,185.66,185.59,2.71]
[1760788590795,2.68,185.67,185.6,1.83927689]
[1760788590998,2.68,185.65,185.61,4.8474]
[1760788591296,2.68,185.65,185.61,7.5574]
[1760788591596,4.51927689,185.68,185.62,7.5571]
[1760788591801,6.87698062,185.67,185.63,2.71]
[1760788592096,2.68,185.67,185.63,2.71]
[1760788594801,2.68,185.67,185.62,6.68637689]
[1760788594995,1.83927689,185.7,185.64,2.71]
[1760788595204,4.19541573,185.69,185.63,2.71]
[1760788595391,1.83927689,185.7,185.63,2.71]
[1760788595595,6.87484354,185.69,185.63,2.71]
[1760788595797,2.68,185.69,185.63,2.71]
[1760788595993,2.68,185.69,185.62,1.83927689]
[1760788595994,1.83927689,185.7,185.64,4.8467]
[1760788596302,2.68,185.68,185.64,9.39597689]
[1760788596999,4.51927689,185.73,185.65,2.71]
[1760788597302,8.75156914,185.72,185.65,2.71]
[1760788597497,4.19424682,185.71,185.65,2.71]
[1760788597694,6.87424682,185.7,185.66,7.5562]
[1760788597892,2.68,185.72,185.67,2.71]
[1760788598095,4.19373441,185.71,185.66,1.83927689]
[1760788598299,2.68,185.72,185.66,1.83927689]
[1760788598496,4.19310061,185.71,185.66,1.83927689]
[1760788598698,2.68,185.72,185.67,2.71]
[1760788598895,4.19310078,185.71,185.66,1.83927689]
[1760788599090,2.68,185.74,185.68,7.5556]
[1760788599295,2.68,185.72,185.68,7.5556]
[1760788599491,1.83927689,185.75,185.69,7.5553]
[1760788599702,2.68,185.74,185.7,2.71]
[1760788600104,51.90822123,185.76,185.71,4.8448]
[1760788600403,2.68,185.74,185.7,4.54927689]
[1760788600795,2.68,185.74,185.7,2.71]
[1760788602101,2.68,185.74,185.7,7.5551]
[1760788603402,2.68,185.74,185.68,4.8457]
[1760788603899,2.68,185.71,185.68,4.8457]
[1760788604101,2.68,185.71,185.68,7.5557]
[1760788604699,4.51927689,185.72,185.66,4.8462]
[1760788605096,51.90822123,185.76,185.66,4.8462]
[1760788605097,1.83927689,185.7,185.66,4.8462]
[1760788605294,2.68,185.69,185.65,2.71]
[1760788605495,1.83927689,185.7,185.65,2.71]
[1760788605698,2.68,185.69,185.65,2.71]
[1760788606606,1.83927689,185.68,185.65,2.71]
[1760788606814,1.83927689,185.7,185.64,2.74]
[1760788607105,4.58927689,185.7,185.64,2.74]
[1760788608007,1.83927689,185.7,185.64,4.8467]
[1760788608211,4.70332611,185.75,185.62,2.74]
[1760788608212,1.83927689,185.68,185.62,2.74]
[1760788608704,2.75,185.67,185.64,2.74]
[1760788609208,1.83927689,185.68,185.65,2.74]
[1760788611402,2.75,185.7,185.65,2.74]
[1760788611803,5.62057348,185.71,185.65,2.74]
[1760788612209,4.26572124,185.7,185.6,2.74]
[1760788612409,5.62057348,185.71,185.6,2.74]
[1760788612608,7.01572073,185.7,185.66,7.5861]
[1760788612811,2.75,185.7,185.66,7.5861]
[1760788614012,2.75,185.7,185.67,2.74]
[1760788615018,2.87057348,185.71,185.68,2.74]
[1760788615317,2.75,185.73,185.67,7.5859]
[1760788616514,2.87057348,185.74,185.68,4.8456]
[1760788616716,2.87057348,185.74,185.69,2.74]
[1760788617123,54.65822123,185.76,185.65,2.74]
[1760788617415,4.26777447,185.75,185.65,2.74]
[1760788617610,54.65822123,185.76,185.65,2.74]
[1760788617815,4.26777447,185.75,185.65,2.74]
[1760788618019,2.75,185.76,185.7,4.8452]
[1760788618219,2.75,185.74,185.7,7.5852]
[1760788618816,2.75,185.74,185.71,2.74]
[1760788619229,2.75,185.76,185.68,7.5857]
[1760788619524,4.26823205,185.75,185.68,7.5857]
[1760788619720,4.26823205,185.74,185.68,7.5857]
[1760788619921,2.75,185.76,185.7,2.74]
[1760788620125,2.75,185.74,185.7,2.74]
[1760788620325,2.75,185.73,185.7,2.74]
[1760788622222,2.87057348,185.74,185.67,2.74]
[1760788622421,2.87057348,185.71,185.62,2.74]
[1760788622622,2.75,185.7,185.62,2.74]
[1760788624025,2.75,185.7,185.64,4.8467]
[1760788627524,2.75,185.7,185.64,7.7167]
[1760788628623,7.71567348,185.71,185.64,4.8467]
[1760788628624,4.27132643,185.69,185.64,4.8467]
[1760788628831,2.86,185.7,185.64,4.8467]
[1760788629141,2.86,185.67,185.64,4.8467]
[1760788629326,2.86,185.69,185.62,7.7172]
[1760788629630,2.86,185.67,185.59,2.87]
[1760788630831,2.86,185.67,185.56,2.87]
[1760788630832,2.86,185.64,185.56,2.87]
[1760788631129,4.27427291,185.63,185.56,2.87]
[1760788631323,2.86,185.61,185.56,2.87]
[1760788631529,5.73057348,185.59,185.56,2.87]
[1760788631729,5.73057348,185.59,185.55,2.87]
[1760788632327,2.86,185.58,185.55,2.87]
[1760788632826,2.86,185.58,185.54,4.8493]
[1760788632827,2.87057348,185.59,185.56,2.87]
[1760788634126,2.87057348,185.59,185.57,2.87]
[1760788634532,2.86,185.61,185.57,2.87]
[1760788635430,2.86,185.61,185.55,4.849]
[1760788635630,2.86,185.61,185.54,2.87]
[1760788637029,2.87057348,185.62,185.55,2.76]
[1760788641836,5.59057348,185.62,185.55,7.609]
[1760788644734,2.87057348,185.62,185.55,7.609]
[1760788644939,2.72,185.61,185.55,7.609]
[1760788648643,2.72,185.61,185.55,2.76]
[1760788650346,2.72,185.61,185.53,4.8496]
[1760788650643,7.5678,185.61,185.53,4.8496]
[1760788650845,2.72,185.59,185.53,4.8496]
[1760788651639,2.72,185.6,185.54,4.8493]
[1760788653247,2.72,185.59,185.54,4.8493]
[1760788653452,2.72,185.59,185.56,2.76]
[1760788657650,5.59057348,185.62,185.56,2.76]
[1760788658143,2.72,185.62,185.56,2.76]
[1760788658447,2.72,185.65,185.56,2.76]
[1760788658955,2.72,185.65,185.58,2.76]
[1760788659955,2.72,185.65,185.59,4.8479]
[1760788664258,6.98174836,185.64,185.6,2.76]
[1760788664448,2.72,185.64,185.6,2.76]
[1760788665650,2.72,185.66,185.6,2.76]
[1760788665850,2.72,185.64,185.6,2.76]
[1760788667056,4.8462,185.67,185.6,2.76]
[1760788667258,7.09994695,185.66,185.6,2.76]
[1760788667556,4.25994695,185.65,185.6,2.76]
[1760788667749,7.09994695,185.64,185.6,2.76]
[1760788667951,2.84,185.64,185.61,2.64]
[1760788669451,2.84,185.64,185.59,4.8479]
[1760788669658,2.84,185.66,185.59,4.8479]
[1760788669856,2.84,185.64,185.59,4.8479]
[1760788670154,2.84,185.63,185.6,2.64]
[1760788670554,4.8462,185.67,185.59,4.8479]
[1760788670757,11.73475987,185.66,185.6,2.64]
[1760788670954,4.2666288,185.65,185.6,2.64]
[1760788671151,7.1066288,185.64,185.6,2.64]
[1760788671354,4.2666288,185.63,185.6,2.64]
[1760788671552,2.84,185.64,185.59,4.8479]
[1760788671860,4.26829078,185.63,185.6,2.64]
[1760788672158,2.84,185.64,185.6,2.64]
[1760788672355,7.11013993,185.63,185.6,2.64]
[1760788672659,2.84,185.63,185.6,2.64]
[1760788673357,2.84,185.63,185.6,4.47760355]
[1760788674264,4.27404372,185.62,185.6,4.47760355]
[1760788674461,2.84,185.63,185.6,4.47760355]
[1760788674661,4.27404408,185.62,185.6,4.47760355]
[1760788674961,2.84,185.63,185.61,2.64]
[1760788675257,4.27404408,185.62,185.61,2.64]
[1760788675859,9.86206589,185.67,185.61,2.64]
[1760788676058,16.50044865,185.66,185.6,9.32530355]
[1760788676252,8.53611293,185.69,185.5,9.7008]
[1760788676253,20.51415194,185.65,185.57,2.64]
[1760788676453,21.51654839,185.64,185.56,1.83760355]
[1760788676660,2.84,185.62,185.56,1.83760355]
[1760788676857,23.52534411,185.61,185.54,4.47760355]
[1760788677057,2.84,185.59,185.54,1.83760355]
[1760788677263,2.84,185.59,185.52,1.83760355]
[1760788677264,4.2749598,185.58,185.52,1.83760355]
[1760788677464,2.84,185.56,185.52,1.83760355]
[1760788677759,4.848,185.6,185.53,2.64]
[1760788677963,16.50470981,185.59,185.53,2.64]
[1760788678165,4.27571934,185.58,185.53,2.64]
[1760788678369,2.84,185.56,185.53,2.64]
[1760788680262,7.6883,185.59,185.53,2.64]
[1760788680468,8.91108134,185.58,185.53,2.64]
[1760788680760,4.27435241,185.57,185.53,2.64]
[1760788680964,7.11435241,185.56,185.53,2.64]
[1760788681166,2.84,185.56,185.53,2.64]
[1760788681866,2.84,185.58,185.53,2.64]
[1760788682063,2.84,185.56,185.5,2.64]
[1760788682266,4.27370653,185.55,185.51,1.83760355]
[1760788682563,7.11370653,185.54,185.51,4.47760355]
[1760788682763,4.27370653,185.53,185.51,2.64]
[1760788682966,2.84,185.54,185.51,2.64]
[1760788683170,4.27368428,185.53,185.51,2.64]
[1760788683365,2.84,185.54,185.51,2.64]
[1760788685164,2.84,185.54,185.5,4.8503]
[1760788685967,1.83760355,185.57,185.52,2.64]
[1760788686266,4.26955961,185.56,185.52,2.64]
[1760788686462,1.83760355,185.57,185.52,2.64]
[1760788686662,2.69,185.58,185.52,2.6]
[1760788686863,4.26889151,185.57,185.52,2.6]
[1760788687166,2.69,185.58,185.52,2.6]
[1760788687361,6.95850919,185.57,185.52,2.6]
[1760788687561,2.69,185.57,185.51,6.68760355]
[1760788687766,2.69,185.58,185.51,7.45]
[1760788688069,4.26850919,185.57,185.51,7.45]
[1760788688272,1.83760355,185.59,185.52,2.6]
[1760788688273,6.95850919,185.56,185.52,2.6]
[1760788688460,2.69,185.56,185.52,2.6]
[1760788688662,2.69,185.54,185.51,4.85]
[1760788688869,2.69,185.54,185.51,7.45]
[1760788691666,2.69,185.54,185.51,4.85]
[1760788691868,2.69,185.54,185.52,2.6]
[1760788694970,1.83760355,185.55,185.49,3.53787899]
[1760788695177,75.3715,185.7,185.49,0.93787899]
[1760788695178,2.69,185.52,185.49,0.93787899]
[1760788695371,2.69,185.52,185.46,2.6]
[1760788695571,2.69,185.52,185.46,3.53813182]
[1760788695877,1.83760355,185.53,185.48,4.8509]
[1760788696175,1.83760355,185.53,185.48,7.4509]
[1760788696376,2.65,185.52,185.48,7.4509]
[1760788696571,1.83760355,185.53,185.48,7.4509]
[1760788696769,2.65,185.52,185.48,7.4509]
[1760788697172,1.83760355,185.53,185.48,7.4509]
[1760788697372,2.65,185.52,185.48,7.4509]
[1760788697576,1.83760355,185.53,185.48,7.4509]
[1760788698472,2.65,185.52,185.48,4.8509]
[1760788698669,2.65,185.52,185.49,7.5705]
[1760788701175,5.01586589,185.61,185.51,1.83760355]
[1760788701484,2.65,185.62,185.57,1.83760355]
[1760788701671,1.83760355,185.66,185.59,4.8479]
[1760788701875,6.91372786,185.65,185.59,1.83760355]
[1760788702078,4.26340261,185.64,185.6,2.72]
[1760788702280,1.83760355,185.64,185.57,2.72]
[1760788702477,2.65,185.62,185.57,2.72]
[1760788702677,2.65,185.63,185.57,2.72]
[1760788703178,2.65,185.63,185.58,4.8482]
[1760788703377,2.65,185.63,185.58,6.68580355]
[1760788704179,4.48760355,185.66,185.59,2.72]
[1760788704381,4.26316441,185.65,185.59,2.72]
[1760788704584,4.26316441,185.64,185.58,6.68580355]
[1760788704781,4.48760355,185.66,185.59,2.72]
[1760788704981,4.26316441,185.65,185.59,2.72]
[1760788705181,4.26316441,185.64,185.6,2.72]
[1760788705379,2.65,185.66,185.6,4.55760355]
[1760788705581,6.91314898,185.65,185.61,2.72]
[1760788705781,4.26314898,185.64,185.61,2.72]
[1760788705982,2.65,185.65,185.61,2.72]
[1760788706180,4.2631484,185.64,185.61,2.72]
[1760788706375,2.65,185.65,185.61,2.72]
[1760788706579,2.65,185.7,185.63,1.83760355]
[1760788706883,1.83760355,185.68,185.61,1.83760355]
[1760788707077,6.91262633,185.67,185.61,1.83760355]
[1760788707284,4.26262633,185.66,185.59,9.40550355]
[1760788707480,2.65,185.67,185.59,9.40550355]
[1760788707675,4.26254622,185.66,185.6,4.8476]
[1760788707884,2.65,185.69,185.62,1.83760355]
[1760788708083,4.26231079,185.68,185.62,1.83760355]
[1760788708285,2.65,185.67,185.63,2.72]
[1760788708485,2.65,185.71,185.64,1.83760355]
[1760788708687,4.26152765,185.7,185.64,1.83760355]
[1760788708983,2.65,185.68,185.64,1.83760355]
[1760788709387,2.65,185.68,185.65,2.72]
[1760788709582,2.65,185.71,185.64,4.55760355]
[1760788709789,4.26051461,185.7,185.64,4.55760355]
[1760788709987,6.91051461,185.69,185.65,2.72]
[1760788710180,2.65,185.72,185.66,1.83760355]
[1760788710384,2.65,185.7,185.66,1.83760355]
[1760788710582,6.90959975,185.69,185.66,1.83760355]
[1760788710783,2.65,185.69,185.66,1.83760355]
[1760788711388,11.69786944,185.74,185.66,1.83760355]
[1760788711389,2.65,185.72,185.66,1.83760355]
[1760788711588,2.65,185.7,185.64,6.68420355]
[1760788711784,2.65,185.67,185.64,1.83760355]
[1760788711989,1.83760355,185.72,185.64,1.83760355]
[1760788712192,6.90889702,185.71,185.64,1.83760355]
[1760788712486,2.65,185.68,185.62,4.55760355]
[1760788712688,4.2585227,185.67,185.6,1.83760355]
[1760788712886,2.65,185.65,185.59,1.83760355]
[1760788715892,2.65,185.65,185.59,4.55760355]
[1760788718593,4.48760355,185.64,185.58,4.8483]
[1760788718791,2.65,185.64,185.58,4.8483]
[1760788720093,2.65,185.64,185.6,2.72]
[1760788720297,1.83760355,185.66,185.59,1.83760355]
[1760788720492,6.90973209,185.65,185.59,1.83760355]
[1760788720693,2.65,185.65,185.59,1.83760355]
[1760788723897,2.65,185.65,185.59,6.68550355]
[1760788724093,2.65,185.65,185.59,9.40550355]
[1760788726594,2.65,185.65,185.56,44.54]
[1760788726595,2.14586589,185.7,185.64,1.83760355]
[1760788726792,2.14586589,185.7,185.57,75.4223]
[1760788726793,10.02734611,185.8,185.7,1.93]
[1760788726991,10.02734611,185.9,185.74,1.83760355]
[1760788727192,2.65,185.84,185.77,1.83760355]
[1760788727392,2.65,185.84,185.78,1.83760355]
[1760788727393,4.25252395,185.83,185.78,1.83760355]
[1760788727592,2.65,185.86,185.78,6.68070355]
[1760788727798,4.08406212,185.85,185.78,3.76760355]
[1760788727998,2.65,185.86,185.78,3.76760355]
[1760788728300,2.65,185.86,185.81,1.83760355]
[1760788728601,2.65,185.86,185.81,3.76760355]
[1760788729298,6.67700355,185.93,185.83,1.93]
[1760788729501,6.72308135,185.92,185.84,1.83760355]
[1760788729702,2.65,185.9,185.84,1.83760355]
[1760788732598,2.65,185.9,185.83,1.93]
[1760788732897,2.65,185.9,185.84,1.83760355]
[1760788733701,2.65,185.9,185.86,1.83760355]
[1760788733904,6.67680355,185.94,185.86,1.83760355]
[1760788733905,2.65,185.92,185.86,1.83760355]
[1760788734106,2.65,185.9,185.86,1.83760355]
[1760788734307,2.65,185.92,185.86,1.83760355]
[1760788734507,2.65,185.9,185.86,1.83760355]
[1760788734708,2.65,185.89,185.86,1.83760355]
[1760788735407,6.67680355,185.94,185.83,4.7936659]
[1760788735408,2.65,185.92,185.83,4.7936659]
[1760788735705,4.0604951,185.91,185.83,4.7936659]
[1760788736901,2.65,185.92,185.84,1.93]
[1760788737904,2.65,185.92,185.86,2.8636659]
[1760788738105,2.65,185.92,185.88,1.93]
[1760788738307,2.65,185.92,185.87,1.93]
[1760788738502,2.65,185.92,185.88,1.93]
[1760788738711,2.65,185.94,185.88,1.93]
[1760788738909,6.69866122,185.94,185.88,1.93]
[1760788739105,2.65,185.94,185.88,1.93]
[1760788739311,6.69866122,185.94,185.88,1.93]
[1760788739506,4.04866122,185.93,185.83,4.7936659]
[1760788739709,2.65,185.92,185.83,4.7936659]
[1760788740412,2.65,185.91,185.83,4.7936659]
[1760788740907,7.49,185.91,185.8,4.7936659]
[1760788741111,2.65,185.9,185.8,4.7936659]
[1760788741315,2.65,185.89,185.8,4.7936659]
[1760788741512,2.65,185.88,185.8,1.93]
[1760788741913,4.8416,185.85,185.76,1.93]
[1760788742107,2.65,185.84,185.76,1.93]
[1760788742911,11.53975876,185.88,185.76,1.93]
[1760788743210,4.04895876,185.87,185.78,1.93]
[1760788743411,4.04895876,185.86,185.79,4.23465394]
[1760788743716,2.65,185.88,185.8,4.23465394]
[1760788743917,4.05027462,185.87,185.81,4.23465394]
[1760788744213,2.65,185.85,185.82,4.23465394]
[1760788744415,2.65,185.9,185.83,6.16465394]
[1760788744621,2.65,185.9,185.84,4.23465394]
[1760788744913,4.8395,185.93,185.82,7.7057659]
[1760788744914,2.65,185.91,185.85,4.23465394]
[1760788745118,2.65,185.91,185.86,4.23465394]
[1760788745317,2.61,185.94,185.87,4.23465394]
[1760788745619,4.05160952,185.93,185.88,4.23465394]
[1760788745814,2.61,185.91,185.89,4.23465394]
[1760788746115,2.61,185.91,185.9,4.23465394]
[1760788746319,6.66291595,185.91,185.9,4.23465394]
[1760788746716,7.74291595,185.91,185.82,4.7936659]
[1760788746915,4.05291595,185.9,185.82,4.7936659]
[1760788747125,2.61,185.91,185.82,4.7936659]
[1760788747321,4.05269673,185.9,185.82,4.7936659]
[1760788747521,2.61,185.91,185.82,4.7936659]
[1760788747819,4.05269673,185.9,185.82,4.7936659]
[1760788748018,2.61,185.91,185.82,4.7936659]
[1760788748228,4.05269673,185.9,185.82,4.7936659]
[1760788748422,2.61,185.91,185.82,4.7936659]
[1760788748722,4.0526788,185.9,185.82,4.7936659]
[1760788748925,2.61,185.91,185.82,4.7936659]
[1760788749124,4.0526788,185.9,185.82,4.7936659]
[1760788749323,2.61,185.91,185.82,4.7936659]
[1760788749525,4.0526467,185.9,185.83,1.93]
[1760788749724,2.61,185.91,185.83,1.93]
[1760788749925,4.05260646,185.9,185.83,1.93]
[1760788750123,2.61,185.91,185.83,1.93]
[1760788750421,4.05266881,185.9,185.83,1.93]
[1760788750723,2.61,185.91,185.83,1.93]
[1760788750921,4.05266881,185.9,185.83,1.93]
[1760788751125,2.61,185.91,185.83,1.93]
[1760788751324,4.05286663,185.9,185.83,1.93]
[1760788751524,2.61,185.91,185.83,1.93]
[1760788751723,4.05286663,185.9,185.83,1.93]
[1760788751924,2.61,185.91,185.83,1.93]
[1760788752126,4.05286663,185.9,185.83,1.93]
[1760788752324,4.27020618,185.94,185.83,1.93]
[1760788752522,4.27020618,185.94,185.81,2.8636659]
[1760788752523,4.0528292,185.93,185.89,4.8401]
[1760788752718,4.05072542,186.0,185.92,1.93]
[1760788752927,2.61,186.02,185.92,1.93]
[1760788753116,4.05068458,186.01,185.92,1.93]
[1760788753321,2.61,186.02,185.92,4.8395]
[1760788753521,2.61,186.05,185.95,1.93]
[1760788753721,4.0480941,186.04,185.95,1.93]
[1760788753923,2.61,186.02,185.95,1.93]
[1760788757924,2.61,186.02,185.95,6.7687]
[1760788760626,2.8636659,186.05,185.92,1.93]
[1760788760820,2.76,186.04,185.92,1.93]
[1760788761219,2.76,186.0,185.92,1.93]
[1760788761527,2.76,186.0,185.88,1.93]
[1760788762330,7.7013659,185.99,185.88,6.7705]
[1760788762529,2.76,185.98,185.88,6.7705]
[1760788762925,2.76,186.01,185.89,1.93]
[1760788763234,2.76,186.01,185.9,1.93]
[1760788763734,7.5972,186.01,185.93,1.93]
[1760788764031,2.76,186.01,185.93,1.93]
[1760788765326,4.8377,185.99,185.9,6.77]
[1760788765530,2.76,185.98,185.9,6.77]
[1760788767727,2.76,185.98,185.91,1.93]
[1760788776039,2.76,185.98,185.92,1.93]
[1760788776345,2.76,186.01,185.93,1.93]
[1760788777436,2.76,186.01,185.95,1.93]
[1760788777841,2.76,186.01,185.95,6.7685]
[1760788778041,2.76,186.04,185.95,1.93]
[1760788779940,7.5965,186.04,185.96,4.8383]
[1760788780640,7.5965,186.04,185.97,6.7681]
[1760788780841,2.76,186.04,185.97,9.6317659]
[1760788781948,2.76,186.04,185.97,1.93]
[1760788782145,6.96181115,186.07,185.95,4.8386]
[1760788782444,2.76,186.05,185.95,1.93]
[1760788782643,4.09814525,186.08,185.97,2.8636659]
[1760788782841,2.76,186.08,185.98,1.93]
[1760788783947,4.8358,186.07,185.98,6.7677]
[1760788784847,4.836,186.06,185.98,6.7677]
[1760788785048,2.76,186.06,185.98,1.93]
[1760788786051,4.8363,186.05,185.98,1.93]
[1760788787451,2.87,186.04,185.98,1.93]
[1760788788744,2.87,186.04,185.98,6.7678]
[1760788793152,2.87,186.04,185.96,4.8384]
[1760788793352,2.87,186.03,185.96,4.8384]
[1760788794261,7.7063,186.05,185.98,1.93]
[1760788795557,7.7063,186.05,185.98,3.7599937]
[1760788795859,7.7063,186.05,185.98,8.5977937]
[1760788796155,2.87,186.07,186.01,1.93]
[1760788796759,2.87,186.06,186.03,1.93]
[1760788797158,2.87,186.09,186.04,1.8299937]
[1760788797358,2.87,186.09,185.96,1.93]
[1760788797558,2.87,186.1,186.04,1.8299937]
[1760788797759,2.87,186.08,186.02,6.7668]
[1760788797961,2.87,186.08,186.02,8.5967937]
[1760788799062,2.87,186.09,186.04,1.8299937]
[1760788799658,4.835,186.1,186.04,1.8299937]
[1760788799864,2.87,186.08,186.04,3.7599937]
[1760788800358,2.87,186.08,186.05,1.93]
[1760788800863,7.01044574,186.1,186.05,1.93]
[1760788801057,4.9887971,186.11,185.97,45.36]
[1760788801058,9.8231971,186.12,186.06,3.7599937]
[1760788801262,6.59341282,186.15,186.09,1.93]
[1760788801263,4.9887971,186.13,186.09,1.93]
[1760788801465,9.8226971,186.14,186.08,1.8299937]
[1760788801765,2.87,186.11,186.08,1.8299937]
[1760788801966,2.87,186.11,186.08,3.7599937]
[1760788802175,2.87,186.12,186.03,1.93]
[1760788802368,2.87,186.12,186.05,3.7599937]
[1760788802661,2.87,186.12,186.05,1.93]
[1760788802867,4.13714055,186.13,186.07,1.8299937]
[1760788803069,2.87,186.13,186.07,1.8299937]
[1760788803260,7.00597678,186.13,186.07,1.8299937]
[1760788803957,4.9887971,186.16,186.09,6.6650937]
[1760788804161,2.87,186.17,186.11,1.8299937]
[1760788805167,2.87,186.17,186.09,6.7649]
[1760788805469,2.87,186.16,186.1,1.8299937]
[1760788806068,2.87,186.16,186.1,6.6645937]
[1760788806271,4.6999937,186.16,186.09,1.93]
[1760788806469,4.6999937,186.16,186.09,6.7649]
[1760788806969,2.87,186.16,186.09,6.7649]
[1760788807160,2.87,186.16,186.09,8.5948937]
[1760788807363,2.87,186.16,186.1,4.8346]
[1760788807966,2.87,186.16,186.1,6.6645937]
[1760788809364,2.87,186.16,186.1,4.8346]
[1760788810363,2.75,186.15,186.08,1.8299937]
[1760788810667,2.75,186.13,186.06,1.8299937]
[1760788811662,2.75,186.13,186.07,6.7654]
[1760788811859,2.75,186.13,186.09,1.93]
[1760788812058,4.5799937,186.16,186.09,1.93]
[1760788812258,4.09334909,186.15,186.1,4.8346]
[1760788812465,4.09334909,186.14,186.11,1.93]
[1760788812665,1.8299937,186.16,186.11,1.93]
[1760788812867,2.75,186.14,186.1,4.8346]
[1760788813066,1.8299937,186.16,186.1,1.93]
[1760788813263,4.09285287,186.15,186.08,4.8352]
[1760788813466,2.75,186.11,186.08,4.8352]
[1760788813665,1.8299937,186.14,186.06,6.7658]
[1760788813866,6.84323434,186.13,186.06,6.7658]
[1760788814066,4.09323434,186.12,186.06,6.7658]
[1760788814367,2.75,186.13,186.06,6.7658]
[1760788814570,4.16522427,186.12,186.06,6.7658]
[1760788814762,6.91522427,186.11,186.07,1.93]
[1760788814963,2.75,186.11,186.07,1.93]
[1760788816566,1.8299937,186.14,186.07,1.93]
[1760788816766,7.00644611,186.13,186.07,1.93]
[1760788817072,2.84,186.11,186.07,1.93]
[1760788817264,1.8299937,186.14,186.07,1.93]
[1760788817265,2.84,186.13,186.07,1.93]
[1760788817462,2.84,186.11,186.07,1.93]
[1760788817666,2.84,186.13,186.07,1.93]
[1760788817868,1.8299937,186.14,186.07,1.93]
[1760788817869,2.84,186.11,186.07,1.93]
[1760788818069,2.84,186.09,186.03,3.7599937]
[1760788818271,2.84,186.07,186.03,3.7599937]
[1760788818473,2.84,186.07,186.04,1.93]
[1760788818664,2.84,186.09,186.01,3.7599937]
[1760788818867,2.84,186.07,186.01,3.7599937]
[1760788819266,2.84,186.07,186.02,4.8367]
[1760788819467,2.84,186.09,186.03,1.93]
[1760788819674,2.84,186.06,186.03,1.93]
[1760788820268,2.84,186.06,186.02,4.8367]
[1760788820471,4.1726881,186.05,186.02,6.7667]
[1760788820668,2.84,186.05,186.02,1.93]
[1760788821265,2.84,186.07,186.0,8.5972937]
[1760788821470,4.17367829,186.06,186.0,8.5972937]
[1760788821771,2.84,186.04,186.0,6.7673]
[1760788821978,2.84,186.05,186.0,4.8373]
[1760788822174,2.84,186.03,186.0,4.8373]
[1760788822372,2.84,186.03,185.93,45.12]
[1760788822373,4.17457603,186.02,185.96,1.93]
[1760788822576,2.84,186.02,185.96,1.93]
[1760788822878,4.17475865,186.01,185.95,3.7599937]
[1760788823070,2.84,186.02,185.95,1.93]
[1760788823271,4.1747595,186.01,185.95,3.7599937]
[1760788823471,2.84,186.02,185.95,3.7599937]
[1760788823672,2.84,186.0,185.95,1.8299937]
[1760788823980,1.8299937,186.02,185.95,1.8299937]
[1760788824173,4.17500429,186.01,185.95,1.8299937]
[1760788824378,2.84,186.03,185.96,1.93]
[1760788824676,4.17524914,186.02,185.96,1.93]
[1760788824975,2.84,186.03,185.97,1.8299937]
[1760788825183,6.59341282,186.09,185.91,62.0]